bitfinex-derivatives/quotes_BTCF0:USTF0_20250728
["timestamp","ask_amount","ask_price","bid_price","bid_amount"]
[1753665726472,0.3011799,119550.0,119540.0,0.6422612]
[1753665726674,0.6612376,119550.0,119540.0,0.6422612]
[1753665726975,0.6612376,119550.0,119540.0,1.3185012]
[1753665727478,0.66126756,119550.0,119540.0,1.3185012]
[1753665727684,0.49401986,119550.0,119540.0,1.3185012]
[1753665730178,0.66126756,119550.0,119540.0,1.3185012]
[1753665731072,0.49401986,119550.0,119540.0,1.3185012]
[1753665731673,0.66126756,119550.0,119540.0,1.3185012]
[1753665733580,0.49401986,119550.0,119540.0,1.3185012]
[1753665734476,0.37325986,119550.0,119540.0,1.64342628]
[1753665734676,0.01991986,119550.0,119540.0,0.96718628]
[1753665734876,0.01991986,119550.0,119540.0,1.64266628]
[1753665736990,0.49401986,119550.0,119540.0,1.3177412]
[1753665737590,0.06978986,119550.0,119540.0,1.64266628]
[1753665738088,0.23019986,119550.0,119540.0,1.3177412]
[1753665738284,0.30120986,119550.0,119540.0,1.3177412]
[1753665738991,0.01991986,119550.0,119540.0,1.59496424]
[1753665739187,0.01991986,119550.0,119540.0,1.3177412]
[1753665739587,0.01991986,119550.0,119540.0,1.59496424]
[1753665739784,0.07981058,119550.0,119540.0,1.59496424]
[1753665739990,0.07981058,119550.0,119540.0,1.3177412]
[1753665740190,0.07981058,119550.0,119540.0,1.59496424]
[1753665740593,0.07981058,119550.0,119540.0,1.3177412]
[1753665740794,0.07981058,119550.0,119540.0,1.59496424]
[1753665740991,0.01991986,119550.0,119540.0,1.59496424]
[1753665741489,0.01991986,119550.0,119540.0,1.3177412]
[1753665741687,0.01991986,119550.0,119540.0,1.59496424]
[1753665745399,0.01998627,119550.0,119540.0,1.59496424]
[1753665745598,0.48620627,119550.0,119540.0,0.6422612]
[1753665745804,0.65345447,119550.0,119540.0,1.3207012]
[1753665748895,0.65345447,119550.0,119540.0,1.3206612]
[1753665749092,0.93067751,119550.0,119540.0,1.3206612]
[1753665749599,0.48620627,119550.0,119540.0,1.3206612]
[1753665749901,0.01998627,119550.0,119540.0,1.59788424]
[1753665751092,0.01998627,119550.0,119540.0,1.3206612]
[1753665751292,0.01998627,119550.0,119540.0,1.59788424]
[1753665752207,0.01998627,119550.0,119540.0,1.3206612]
[1753665752398,0.01998627,119550.0,119540.0,1.59788424]
[1753665753701,0.18723447,119550.0,119540.0,1.59788424]
[1753665754006,0.01998627,119550.0,119540.0,1.59788424]
[1753665756405,0.01898627,119550.0,119540.0,1.59788424]
[1753665761603,0.01798627,119550.0,119540.0,1.59788424]
[1753665764103,0.28809063,119580.0,119540.0,1.76518824]
[1753665764303,0.60962516,119580.0,119570.0,0.23288608]
[1753665764611,0.66951588,119580.0,119570.0,0.85784]
[1753665764912,0.71848588,119580.0,119570.0,0.85784]
[1753665765311,0.65959516,119580.0,119570.0,0.85784]
[1753665765808,0.9358182,119580.0,119570.0,0.85784]
[1753665766010,0.9398182,119580.0,119570.0,0.85784]
[1753665766210,0.99970892,119580.0,119570.0,0.85784]
[1753665766911,1.00270892,119580.0,119570.0,0.85784]
[1753665768811,0.72548588,119580.0,119570.0,0.85784]
[1753665769116,0.49032853,119580.0,119570.0,0.86366]
[1753665769504,0.55048837,119580.0,119570.0,0.86366]
[1753665769906,0.82771141,119580.0,119570.0,0.86366]
[1753665770106,0.99491741,119580.0,119570.0,0.85784]
[1753665770817,0.71769437,119580.0,119570.0,0.85784]
[1753665771014,0.55048837,119580.0,119570.0,0.85784]
[1753665771315,0.8277033,119580.0,119570.0,0.85784]
[1753665771514,0.55048026,119580.0,119570.0,0.85784]
[1753665771716,0.76755157,119580.0,119570.0,0.86366]
[1753665772310,0.93475747,119580.0,119570.0,0.85784]
[1753665775220,0.93475747,119580.0,119570.0,0.16722]
[1753665775517,0.93475747,119580.0,119570.0,0.84698]
[1753665776017,0.85115967,119580.0,119560.0,0.1261507]
[1753665776221,0.91002274,119570.0,119560.0,0.250837]
[1753665776521,0.92703127,119570.0,119560.0,0.930157]
[1753665777319,0.92703127,119570.0,119560.0,0.930887]
[1753665777921,0.93003127,119570.0,119560.0,0.930887]
[1753665778115,0.65280823,119570.0,119560.0,0.930887]
[1753665778320,0.93003127,119570.0,119560.0,0.930887]
[1753665778720,0.93203127,119570.0,119560.0,0.930887]
[1753665778918,0.65480823,119570.0,119560.0,0.930887]
[1753665779118,0.65480823,119570.0,119560.0,0.941377]
[1753665779318,0.93203127,119570.0,119560.0,0.941377]
[1753665779519,0.93203127,119570.0,119560.0,0.262057]
[1753665779720,0.93203127,119570.0,119560.0,0.929877]
[1753665781219,0.93203127,119570.0,119560.0,0.930607]
[1753665781421,0.65480823,119570.0,119560.0,0.941097]
[1753665781623,0.93203127,119570.0,119560.0,0.941097]
[1753665783019,0.48758853,119570.0,119560.0,1.22414004]
[1753665783219,0.09983853,119570.0,119560.0,1.22414004]
[1753665786215,0.06784853,119570.0,119560.0,1.22414004]
[1753665788128,0.05084,119570.0,119560.0,1.22414004]
[1753665788328,0.06784853,119570.0,119560.0,1.22414004]
[1753665789222,0.06784853,119570.0,119560.0,0.947317]
[1753665789425,0.06784853,119570.0,119560.0,1.22454004]
[1753665789927,0.06584853,119570.0,119560.0,1.22454004]
[1753665790229,0.06684853,119570.0,119560.0,0.947317]
[1753665790425,0.06384853,119570.0,119560.0,0.947317]
[1753665790729,0.06584853,119570.0,119560.0,0.947317]
[1753665791229,0.06584853,119570.0,119560.0,1.22454004]
[1753665792927,0.06584853,119570.0,119560.0,0.947317]
[1753665793120,0.14703853,119570.0,119560.0,0.947317]
[1753665793318,0.37731853,119570.0,119560.0,0.267877]
[1753665793523,0.48558853,119570.0,119560.0,0.947637]
[1753665795626,0.48558853,119570.0,119560.0,0.267877]
[1753665795832,0.93003157,119570.0,119560.0,0.856684]
[1753665796030,0.65280853,119570.0,119560.0,0.856684]
[1753665796336,0.93003157,119570.0,119560.0,0.856684]
[1753665796630,0.93003157,119570.0,119560.0,0.857854]
[1753665801433,0.93003157,119570.0,119560.0,0.856684]
[1753665801633,0.93003157,119570.0,119560.0,0.846634]
[1753665802633,0.93003157,119570.0,119560.0,0.852274]
[1753665803433,0.93003157,119570.0,119560.0,0.853004]
[1753665804033,0.93003157,119570.0,119560.0,0.862324]
[1753665804333,0.93003157,119570.0,119560.0,0.863494]
[1753665807133,0.65280853,119570.0,119560.0,0.863494]
[1753665807334,0.93003157,119570.0,119560.0,0.863494]
[1753665808538,0.65280853,119570.0,119560.0,0.863494]
[1753665808731,0.93003157,119570.0,119560.0,0.863494]
[1753665814434,0.48558853,119570.0,119560.0,0.863494]
[1753665814637,0.76281157,119570.0,119560.0,0.863494]
[1753665814837,0.48558853,119570.0,119560.0,1.14071704]
[1753665815035,0.48558853,119570.0,119560.0,0.869314]
[1753665815542,0.65280803,119570.0,119560.0,0.869314]
[1753665815740,0.48558853,119570.0,119560.0,0.869314]
[1753665816136,0.48558853,119570.0,119560.0,1.14653704]
[1753665816137,0.25530853,119570.0,119560.0,1.14653704]
[1753665816343,0.06584853,119570.0,119560.0,1.14653704]
[1753665817736,0.06584853,119570.0,119560.0,0.869314]
[1753665817942,0.06584853,119570.0,119560.0,1.14653704]
[1753665818144,0.49003853,119570.0,119560.0,0.869314]
[1753665818841,0.76726157,119570.0,119560.0,0.178454]
[1753665819143,0.76726157,119570.0,119560.0,0.870094]
[1753665819544,0.93448117,119570.0,119560.0,0.870094]
[1753665820336,0.93448117,119570.0,119560.0,0.858594]
[1753665821837,1.37897621,119570.0,119560.0,0.8585936]
[1753665822042,1.10175317,119570.0,119560.0,0.8585936]
[1753665823246,0.93448117,119570.0,119560.0,0.8585936]
[1753665824655,1.00887023,119570.0,119560.0,0.8585936]
[1753665827943,1.28609327,119570.0,119560.0,0.1672336]
[1753665828145,0.5598974,119550.0,119540.0,0.2098015]
[1753665828354,0.99488621,119550.0,119540.0,0.9022815]
[1753665828654,0.99488621,119550.0,119540.0,0.9015515]
[1753665828950,0.93469897,119550.0,119540.0,0.9015515]
[1753665829153,1.00908803,119550.0,119540.0,0.9015515]
[1753665829454,0.93469897,119550.0,119540.0,0.9015515]
[1753665829654,0.93469897,119550.0,119540.0,0.9025515]
[1753665831150,0.9948167,119550.0,119540.0,0.9025515]
[1753665831551,0.93469897,119550.0,119540.0,0.9025515]
[1753665831853,0.93469897,119550.0,119540.0,0.9015515]
[1753665832246,0.99480271,119550.0,119540.0,0.9015515]
[1753665832447,0.93469897,119550.0,119540.0,0.9015515]
[1753665833348,0.99479047,119550.0,119540.0,0.9015515]
[1753665833554,0.99479047,119550.0,119540.0,0.9116015]
[1753665833853,0.99479047,119550.0,119540.0,0.9127715]
[1753665834448,0.9426031,119550.0,119540.0,0.9127715]
[1753665837255,0.66538006,119550.0,119540.0,0.9127715]
[1753665837450,0.66538006,119550.0,119540.0,0.9185915]
[1753665837451,0.93469897,119550.0,119540.0,0.9185915]
[1753665837857,0.06603853,119550.0,119540.0,0.9185915]
[1753665838159,0.34326157,119550.0,119540.0,0.9185915]
[1753665838553,0.51050897,119550.0,119540.0,0.9185915]
[1753665838860,0.34326157,119550.0,119540.0,0.9185915]
[1753665839057,0.06603853,119550.0,119540.0,0.9185915]
[1753665839658,0.06603853,119550.0,119540.0,0.9195915]
[1753665839856,0.06603853,119550.0,119540.0,1.19681454]
[1753665840254,0.06603853,119550.0,119540.0,0.9195915]
[1753665840757,0.01700853,119550.0,119540.0,0.9195915]
[1753665840958,0.68576815,119560.0,119550.0,0.1842873]
[1753665841155,0.95270815,119560.0,119550.0,0.1842873]
[1753665843961,0.95270815,119560.0,119550.0,0.1784673]
[1753665847870,0.95270815,119560.0,119550.0,0.1672473]
[1753665848058,1.22993119,119560.0,119550.0,0.1672473]
[1753665848459,0.3148271,119550.0,119530.0,0.0425457]
[1753665848780,0.91854414,119540.0,119530.0,0.2509092]
[1753665849069,0.93601199,119540.0,119530.0,0.2090908]
[1753665849260,0.93601199,119540.0,119530.0,0.8974508]
[1753665849659,0.93601199,119540.0,119530.0,0.8984508]
[1753665850061,0.93601199,119540.0,119530.0,0.8982508]
[1753665850270,0.93601199,119540.0,119530.0,0.8972508]
[1753665855574,0.93601199,119540.0,119530.0,0.8979808]
[1753665856076,0.65878895,119540.0,119530.0,0.9084708]
[1753665856275,0.93601199,119540.0,119530.0,0.9084708]
[1753665858374,0.93601179,119540.0,119530.0,0.9084708]
[1753665858577,0.65878875,119540.0,119530.0,0.9084708]
[1753665858880,0.93601179,119540.0,119530.0,0.9084708]
[1753665859779,0.93601179,119540.0,119530.0,0.9142908]
[1753665859978,0.65878875,119540.0,119530.0,0.9142908]
[1753665860180,0.93601179,119540.0,119530.0,0.9142908]
[1753665860473,0.93601179,119540.0,119530.0,0.9084708]
[1753665862984,0.93601179,119540.0,119530.0,0.9142908]
[1753665863788,0.93601179,119540.0,119530.0,0.9084708]
[1753665868692,0.65878875,119540.0,119530.0,0.9084708]
[1753665868991,0.93601179,119540.0,119530.0,0.9084708]
[1753665869285,0.65878875,119540.0,119530.0,0.9084708]
[1753665869591,0.93601179,119540.0,119530.0,0.9084708]
[1753665873590,0.93591179,119540.0,119530.0,0.9084708]
[1753665874784,0.93591179,119540.0,119530.0,0.2203108]
[1753665874981,0.93591179,119540.0,119530.0,0.9046308]
[1753665875283,0.2462991,119520.0,119510.0,0.08188985]
[1753665875586,0.4548011,119490.0,119480.0,0.2198271]
[1753665875788,0.93603199,119490.0,119480.0,0.2091771]
[1753665876492,0.93603199,119490.0,119480.0,0.2206571]
[1753665876891,0.93603199,119490.0,119480.0,0.2266571]
[1753665877296,0.93603199,119490.0,119480.0,0.9109771]
[1753665877987,0.93603199,119490.0,119480.0,0.9129771]
[1753665878391,0.93603199,119490.0,119480.0,0.9099771]
[1753665880591,0.49147785,119490.0,119480.0,0.9157971]
[1753665880794,0.49147785,119490.0,119480.0,1.19302014]
[1753665880995,0.65880915,119490.0,119480.0,0.9157971]
[1753665881195,0.93603219,119490.0,119480.0,0.9099771]
[1753665882795,0.93603219,119490.0,119480.0,0.8681441]
[1753665883398,0.65880915,119490.0,119480.0,0.8681441]
[1753665883598,0.93603219,119490.0,119480.0,0.8681441]
[1753665886598,0.65880915,119490.0,119480.0,0.8681441]
[1753665886804,0.93603219,119490.0,119480.0,0.8681441]
[1753665894006,1.2302742,119490.0,119480.0,0.005]
[1753665894208,1.9130742,119490.0,119480.0,0.005]
[1753665894612,1.9130742,119490.0,119450.0,1.47467643]
[1753665894613,0.6413833,119460.0,119450.0,1.47467643]
[1753665894913,0.6412473,119450.0,119440.0,0.2705713]
[1753665895123,0.91847034,119450.0,119440.0,0.9534913]
[1753665896106,0.91847034,119450.0,119440.0,0.9614913]
[1753665897005,0.91847034,119450.0,119440.0,0.9594913]
[1753665897410,0.91847034,119450.0,119440.0,0.9624913]
[1753665898008,0.93667451,119450.0,119440.0,0.9624913]
[1753665899618,0.93667451,119450.0,119440.0,0.9611613]
[1753665899818,0.93667451,119450.0,119440.0,0.9438413]
[1753665900320,0.93667451,119450.0,119440.0,0.9624913]
[1753665904113,0.91847034,119450.0,119440.0,0.9624913]
[1753665904422,0.93669808,119450.0,119440.0,0.9624913]
[1753665905014,0.93669778,119450.0,119440.0,0.9624913]
[1753665905318,0.76931078,119450.0,119440.0,0.9624913]
[1753665906521,0.93669778,119450.0,119440.0,0.9594913]
[1753665906722,0.93669778,119450.0,119440.0,0.9554913]
[1753665906922,0.93669778,119450.0,119440.0,0.9574913]
[1753665909627,0.76931078,119450.0,119440.0,0.9574913]
[1753665910128,0.76931078,119450.0,119440.0,0.9683113]
[1753665910515,0.93669778,119450.0,119440.0,0.9574913]
[1753665910720,0.76931078,119450.0,119440.0,0.9574913]
[1753665910924,0.93669778,119450.0,119440.0,0.9574913]
[1753665912129,0.76931078,119450.0,119440.0,0.9574913]
[1753665912326,0.93669768,119450.0,119440.0,0.9574913]
[1753665914627,0.76931078,119450.0,119440.0,0.9574913]
[1753665917028,0.93669778,119450.0,119440.0,0.9574913]
[1753665917922,0.93669778,119450.0,119440.0,0.9561613]
[1753665918118,1.89320082,119450.0,119440.0,0.004]
[1753665918524,0.644785,119430.0,119420.0,0.2092761]
[1753665918723,0.644785,119430.0,119410.0,1.2022091]
[1753665918724,0.3271291,119420.0,119410.0,0.2112896]
[1753665919021,0.2476831,119410.0,119400.0,0.27472195]
[1753665919227,0.94038277,119410.0,119400.0,0.95412195]
[1753665919736,0.66316197,119410.0,119400.0,0.97144195]
[1753665919924,0.94038501,119410.0,119400.0,0.97917195]
[1753665920830,0.66316197,119410.0,119400.0,0.97917195]
[1753665921131,0.94038501,119410.0,119400.0,0.97917195]
[1753665921632,0.94138501,119410.0,119400.0,0.98417195]
[1753665922130,0.77394191,119410.0,119400.0,0.98917195]
[1753665922729,0.94138491,119410.0,119400.0,0.98917195]
[1753665923434,0.77394191,119410.0,119400.0,0.98917195]
[1753665923637,0.94138481,119410.0,119400.0,0.98917195]
[1753665924535,0.49671887,119410.0,119400.0,0.99999195]
[1753665924834,0.77394191,119410.0,119400.0,0.99999195]
[1753665926732,0.14733887,119410.0,119400.0,1.27721499]
[1753665926934,0.01934887,119410.0,119400.0,1.27721499]
[1753665927129,0.06440887,119410.0,119400.0,0.99999195]
[1753665927336,0.06440887,119410.0,119400.0,1.27721499]
[1753665927528,0.32300887,119410.0,119400.0,0.99999195]
[1753665927833,0.92403491,119410.0,119400.0,0.98917195]
[1753665929729,0.92403491,119410.0,119400.0,0.30977195]
[1753665929932,0.92403491,119410.0,119400.0,0.99025195]
[1753665931236,0.92403491,119410.0,119400.0,0.9715329]
[1753665931438,0.64681187,119410.0,119400.0,0.9715329]
[1753665931833,0.75659191,119410.0,119400.0,0.9715329]
[1753665932429,0.75659191,119410.0,119400.0,0.9823529]
[1753665932831,0.92403501,119410.0,119400.0,0.9823529]
[1753665933131,0.75659191,119410.0,119400.0,0.9823529]
[1753665933328,0.92403501,119410.0,119400.0,0.9823529]
[1753665933531,0.92403501,119410.0,119400.0,0.8878171]
[1753665934441,0.92303501,119410.0,119400.0,0.8529371]
[1753665934639,0.92303501,119410.0,119400.0,0.8559371]
[1753665936138,0.92303501,119410.0,119400.0,0.8569371]
[1753665936342,0.92303501,119410.0,119400.0,0.8577671]
[1753665936840,0.92303501,119410.0,119400.0,0.8764171]
[1753665937036,0.92303501,119410.0,119400.0,0.8828171]
[1753665937841,0.92303501,119410.0,119400.0,0.8818171]
[1753665939543,0.92301294,119410.0,119400.0,0.8818171]
[1753665940342,0.92301294,119410.0,119400.0,0.68448]
[1753665940542,1.87979598,119410.0,119400.0,0.004]
[1753665940737,2.29729198,119410.0,119400.0,0.004]
[1753665941844,2.29729198,119410.0,119400.0,0.002]
[1753665942043,2.29729198,119410.0,119400.0,0.003]
[1753665942342,1.87979598,119410.0,119400.0,0.003]
[1753665942548,2.04729198,119410.0,119400.0,0.003]
[1753665942738,2.10738348,119410.0,119400.0,0.001]
[1753665942937,2.10738348,119410.0,119400.0,0.002]
[1753665947749,2.08905668,119410.0,119400.0,0.002]
[1753665947946,2.10737275,119410.0,119400.0,0.002]
[1753665949645,2.10737275,119410.0,119400.0,0.1694566]
[1753665950547,2.04728125,119410.0,119400.0,0.002]
[1753665953651,1.87978525,119410.0,119400.0,0.002]
[1753665955352,0.3546905,119390.0,119380.0,0.1714778]
[1753665955650,0.94279961,119390.0,119380.0,0.1714778]
[1753665956551,0.94279961,119390.0,119380.0,0.1774778]
[1753665958344,0.66557657,119390.0,119380.0,0.2065578]
[1753665958544,0.11574607,119390.0,119380.0,0.2173778]
[1753665958746,0.01831607,119390.0,119380.0,0.49460084]
[1753665958946,0.0491,119400.0,119390.0,0.2073705]
[1753665959255,0.06744493,119400.0,119390.0,1.17023354]
[1753665959947,0.06744493,119400.0,119390.0,0.8930105]
[1753665960150,0.01834493,119400.0,119390.0,1.3125225]
[1753665960347,0.01834493,119400.0,119390.0,1.58974554]
[1753665960348,3e-08,119400.0,119390.0,1.58974554]
[1753665960547,0.01694911,119410.0,119400.0,0.1674565]
[1753665960847,0.12612141,119430.0,119420.0,0.1674285]
[1753665961146,0.12611975,119430.0,119420.0,0.8470685]
[1753665961944,0.34325295,119430.0,119420.0,0.8470685]
[1753665962444,0.76234745,119430.0,119420.0,0.8470685]
[1753665962667,0.83294745,119430.0,119420.0,0.8470685]
[1753665962844,0.94335745,119430.0,119420.0,0.8470685]
[1753665963055,0.94435745,119430.0,119420.0,0.8470685]
[1753665964851,1.02806915,119430.0,119410.0,0.1255756]
[1753665965048,0.75084611,119430.0,119420.0,0.8469885]
[1753665965955,0.6472185,119420.0,119410.0,0.2930061]
[1753665966156,0.92444154,119420.0,119410.0,0.9725661]
[1753665967654,0.92544154,119420.0,119410.0,0.9725661]
[1753665970758,0.92544154,119420.0,119410.0,0.2930061]
[1753665970960,0.6472325,119410.0,119400.0,0.2511681]
[1753665971160,0.92445554,119410.0,119400.0,0.2511681]
[1753665971459,0.92445554,119410.0,119400.0,0.9306081]
[1753665972154,0.92445554,119410.0,119400.0,0.2113044]
[1753665972359,0.92445554,119410.0,119400.0,0.002]
[1753665972555,0.94247286,119410.0,119400.0,0.8488966]
[1753665984661,0.95068088,119410.0,119400.0,0.8488966]
[1753665986376,0.94247286,119410.0,119400.0,0.8488966]
[1753665989771,0.49780732,119410.0,119400.0,0.8488966]
[1753665989976,0.95002286,119410.0,119400.0,0.8488966]
[1753665991173,0.1164617,119400.0,119380.0,0.0837398]
[1753665991372,0.04923,119390.0,119380.0,0.57031794]
[1753665991572,0.01801732,119390.0,119380.0,1.24963794]
[1753665991772,0.04923,119400.0,119390.0,0.1674705]
[1753665991975,0.5119671,119400.0,119390.0,0.1674705]
[1753665992179,1.22700014,119400.0,119390.0,0.1674705]
[1753665992373,0.9497771,119400.0,119390.0,0.8467905]
[1753665992880,0.9497771,119400.0,119390.0,0.1694705]
[1753665993081,0.9497771,119400.0,119390.0,0.002]
[1753665993082,1.22700014,119400.0,119390.0,0.002]
[1753665993279,0.1674707,119390.0,119380.0,0.167483]
[1753665993473,0.6545247,119380.0,119370.0,0.251235]
[1753665993680,0.9498053,119380.0,119370.0,0.930555]
[1753665994188,0.3625287,119370.0,119360.0,0.2093824]
[1753665994489,0.94982104,119370.0,119360.0,0.8468259]
[1753665994678,0.94982104,119370.0,119360.0,0.1675059]
[1753665994878,0.94982104,119370.0,119360.0,0.8468259]
[1753665995072,0.94982104,119370.0,119360.0,0.1675059]
[1753665995278,0.94982104,119370.0,119360.0,0.8467859]
[1753665995478,0.94982104,119370.0,119360.0,0.8517859]
[1753665996585,0.95082104,119370.0,119360.0,0.8557859]
[1753665996881,0.673598,119370.0,119360.0,0.8557859]
[1753665997093,0.78332234,119370.0,119360.0,0.8557859]
[1753665997288,0.78232234,119370.0,119360.0,0.8517859]
[1753665997582,0.78232234,119370.0,119360.0,0.8547859]
[1753665997583,0.94982094,119370.0,119360.0,0.8547859]
[1753665997986,0.78232234,119370.0,119360.0,0.8547859]
[1753665998687,0.78232234,119370.0,119360.0,0.8497859]
[1753665998884,0.5050993,119370.0,119360.0,0.8507859]
[1753665999188,0.78232234,119370.0,119360.0,0.8507859]
[1753665999389,0.0672893,119370.0,119360.0,0.8507859]
[1753666000482,0.2374793,119370.0,119360.0,0.8507859]
[1753666000786,0.3904493,119370.0,119360.0,0.8507859]
[1753666001386,0.59508234,119370.0,119360.0,0.8507859]
[1753666001591,0.3178593,119370.0,119360.0,0.8507859]
[1753666001789,0.59508234,119370.0,119360.0,0.8507859]
[1753666002387,0.78232234,119370.0,119360.0,0.8507859]
[1753666002987,0.94982074,119370.0,119360.0,0.8507859]
[1753666003188,0.78232234,119370.0,119360.0,0.8507859]
[1753666004592,0.94982074,119370.0,119360.0,0.8508259]
[1753666016093,0.6725977,119370.0,119360.0,0.8508259]
[1753666016397,0.94982074,119370.0,119360.0,0.8508259]
[1753666020306,0.78232234,119370.0,119360.0,0.8508259]
[1753666020601,0.1476693,119370.0,119360.0,1.12804894]
[1753666020799,0.0672893,119370.0,119360.0,1.12804894]
[1753666024309,0.0672893,119370.0,119360.0,0.8508259]
[1753666025602,0.94140064,119370.0,119360.0,0.8508259]
[1753666025907,0.77390234,119370.0,119360.0,0.8508259]
[1753666026605,0.94140084,119370.0,119360.0,0.8508259]
[1753666028211,0.77390234,119370.0,119360.0,0.8508259]
[1753666028704,0.94140084,119370.0,119360.0,0.8508259]
[1753666029214,0.77390234,119370.0,119360.0,0.8508259]
[1753666030107,0.94140084,119370.0,119360.0,0.1715059]
[1753666030303,0.94140084,119370.0,119360.0,0.8505459]
[1753666031010,0.77390234,119370.0,119360.0,0.8505459]
[1753666032307,0.3160493,119370.0,119360.0,1.12776894]
[1753666032510,0.0672893,119370.0,119360.0,1.12776894]
[1753666032905,0.0160593,119370.0,119360.0,1.57254397]
[1753666033414,0.0160593,119370.0,119360.0,1.29532093]
[1753666033915,0.06255644,119380.0,119370.0,0.1674984]
[1753666034112,0.06255644,119380.0,119370.0,0.44472144]
[1753666035112,0.06255644,119380.0,119370.0,0.44572144]
[1753666035607,0.01726644,119380.0,119370.0,0.44572144]
[1753666035805,0.01726644,119380.0,119370.0,0.44772144]
[1753666037014,0.06255644,119380.0,119370.0,0.44772144]
[1753666038311,0.04529,119380.0,119370.0,0.44772144]
[1753666038514,0.16992,119390.0,119380.0,0.1674845]
[1753666038713,0.21521,119390.0,119380.0,0.8463645]
[1753666039214,0.29405,119390.0,119380.0,0.8463645]
[1753666039415,0.36881,119390.0,119380.0,0.8463645]
[1753666039608,0.47568,119390.0,119380.0,0.8463645]
[1753666040213,0.75290304,119390.0,119380.0,0.8463645]
[1753666041421,0.75290304,119390.0,119380.0,0.8473645]
[1753666043917,0.47568,119390.0,119380.0,0.8473645]
[1753666044215,0.75290304,119390.0,119380.0,0.8473645]
[1753666044915,0.77132995,119390.0,119380.0,0.8473645]
[1753666045116,0.93880025,119390.0,119380.0,0.8473645]
[1753666045720,0.77132995,119390.0,119380.0,0.8473645]
[1753666046117,0.75290304,119390.0,119380.0,0.8473645]
[1753666046318,0.77133148,119390.0,119380.0,0.8473645]
[1753666048221,0.93880188,119390.0,119380.0,0.8473645]
[1753666048422,0.77133148,119390.0,119380.0,0.8473645]
[1753666050516,0.49410844,119390.0,119380.0,0.8473645]
[1753666054421,0.06471844,119390.0,119380.0,1.14292464]
[1753666055322,0.06471844,119390.0,119380.0,0.8657016]
[1753666055523,0.06471844,119390.0,119380.0,1.14292464]
[1753666055727,0.06471844,119390.0,119380.0,0.8657016]
[1753666055929,0.06471844,119390.0,119380.0,1.14292464]
[1753666059232,0.06471844,119390.0,119380.0,0.8657016]
[1753666059430,0.06471844,119390.0,119380.0,1.14292464]
[1753666075046,0.01942844,119390.0,119380.0,1.14292464]
[1753666075348,4e-08,119390.0,119380.0,1.14292464]
[1753666075740,4e-08,119390.0,119380.0,1.31045264]
[1753666076850,0.06460997,119410.0,119400.0,0.1674566]
[1753666077052,0.06460997,119410.0,119400.0,1.12255964]
[1753666077245,0.04746,119410.0,119400.0,1.13062749]
[1753666077441,0.46852304,119440.0,119430.0,0.1674146]
[1753666077647,0.47556,119440.0,119430.0,0.8452546]
[1753666079352,0.47756,119440.0,119430.0,0.8452546]
[1753666079753,0.48456,119440.0,119430.0,0.8452546]
[1753666080747,0.29961,119440.0,119430.0,1.12247764]
[1753666080955,0.05346,119440.0,119430.0,1.12247764]
[1753666081250,0.24476,119440.0,119430.0,1.12247764]
[1753666081457,0.48156,119440.0,119430.0,0.8450946]
[1753666081959,0.75878304,119440.0,119430.0,0.91116743]
[1753666082459,0.75878304,119440.0,119430.0,0.8450946]
[1753666082658,0.48156,119440.0,119430.0,0.8450946]
[1753666084057,0.92618354,119440.0,119430.0,0.1674146]
[1753666084257,0.75878304,119440.0,119430.0,0.8449746]
[1753666086660,0.75878304,119440.0,119430.0,0.91137601]
[1753666087264,0.77687518,119440.0,119430.0,0.91137601]
[1753666088667,0.49965214,119440.0,119430.0,1.18859905]
[1753666091669,0.49965214,119440.0,119430.0,0.91137601]
[1753666091967,0.49965214,119440.0,119430.0,1.18859905]
[1753666092471,0.10292214,119440.0,119430.0,1.18859905]
[1753666092671,0.07155214,119440.0,119430.0,1.18859905]
[1753666093773,0.49965214,119440.0,119430.0,1.18859905]
[1753666094575,0.49965214,119440.0,119430.0,0.91137601]
[1753666097670,0.77687518,119440.0,119430.0,0.23381601]
[1753666097877,0.94427598,119440.0,119430.0,0.91097601]
[1753666098380,0.77687518,119440.0,119430.0,0.91097601]
[1753666098581,1.26335122,119440.0,119430.0,0.1674148]
[1753666098766,1.11025722,119440.0,119430.0,0.8445348]
[1753666099168,1.34705722,119440.0,119430.0,0.8445348]
[1753666099368,1.30520402,119440.0,119430.0,0.8445348]
[1753666101477,1.02798098,119440.0,119430.0,0.8445348]
[1753666101878,0.77687518,119440.0,119430.0,0.8445348]
[1753666105977,0.49965214,119440.0,119430.0,0.8445348]
[1753666110882,0.77687518,119440.0,119430.0,0.8445348]
[1753666113785,0.77687518,119440.0,119430.0,0.8442148]
[1753666116487,0.77687518,119440.0,119430.0,0.1674148]
[1753666116689,0.77687518,119440.0,119430.0,0.8441348]
[1753666122385,0.94427608,119440.0,119430.0,0.8441348]
[1753666123292,0.94427608,119440.0,119430.0,0.8439748]
[1753666123691,1.22149912,119440.0,119430.0,0.1674148]
[1753666123891,0.94427608,119440.0,119430.0,0.8439348]
[1753666124390,0.94435537,119440.0,119430.0,0.8439348]
[1753666127694,0.77695447,119440.0,119430.0,0.8439348]
[1753666127887,0.94435507,119440.0,119430.0,0.8439348]
[1753666128590,0.77695447,119440.0,119430.0,0.8439348]
[1753666128790,0.49973143,119440.0,119430.0,0.8439348]
[1753666128990,0.77695447,119440.0,119430.0,0.8439348]
[1753666129700,0.94435507,119440.0,119430.0,0.8439348]
[1753666130391,0.77695447,119440.0,119430.0,0.8439348]
[1753666131094,0.94435507,119440.0,119430.0,0.8439348]
[1753666133304,0.77695447,119440.0,119430.0,0.8439348]
[1753666135602,0.49973143,119440.0,119430.0,0.8439348]
[1753666135802,0.77695447,119440.0,119430.0,0.8439348]
[1753666137808,0.33980143,119440.0,119430.0,0.8439348]
[1753666138102,0.10300143,119440.0,119430.0,1.12115784]
[1753666138715,0.14841143,119440.0,119430.0,0.8439348]
[1753666139006,0.48537143,119440.0,119430.0,0.8439348]
[1753666141711,0.76259447,119440.0,119430.0,0.8439348]
[1753666144010,0.76259447,119440.0,119430.0,0.8434548]
[1753666158421,0.48537143,119440.0,119430.0,0.8434548]
[1753666158816,0.76259447,119440.0,119430.0,0.8434548]
[1753666160013,0.48537143,119440.0,119430.0,0.8434548]
[1753666160226,0.76259447,119440.0,119430.0,0.8434548]
[1753666162928,0.90201541,119440.0,119430.0,1.05177679]
[1753666166832,0.48537143,119440.0,119430.0,1.05177679]
[1753666167034,0.90201541,119440.0,119430.0,1.05177679]
[1753666171443,0.48537143,119440.0,119430.0,1.05177679]
[1753666171740,0.90201541,119440.0,119430.0,1.05177679]
[1753666173236,0.48537143,119440.0,119430.0,1.05177679]
[1753666173446,0.69369342,119440.0,119430.0,1.05177679]
[1753666173941,0.48537143,119440.0,119430.0,1.05177679]
[1753666174136,0.69369342,119440.0,119430.0,1.05177679]
[1753666174544,0.69369342,119440.0,119430.0,1.26009878]
[1753666174545,0.07163143,119440.0,119430.0,1.26009878]
[1753666175943,0.07163143,119440.0,119430.0,1.05177679]
[1753666176243,0.07162602,119440.0,119430.0,1.05177679]